fUST/lending_fUST_20250421
["ID","MTS","AMOUNT","RATE_DAILY","PERIOD"]
[358514766,1745226649602,-500.0,0.00019726,2]
[358514767,1745226649611,-2015.98687743,0.00019726,2]
[358514768,1745226649811,-500.0,0.00019178,2]
[358514769,1745226649821,-214.42311229,0.00019178,2]
[358514770,1745226649924,-289.80219999,0.00019178,2]
[358514771,1745226649936,-84.09311289,0.00019452,2]
[358514772,1745226650145,-503.57950418,0.00019178,2]
[358514773,1745226650155,-500.0,0.00019178,2]
[358514774,1745226650164,-500.0,0.00019178,2]
[358514775,1745226650175,-415.90688711,0.00019452,2]
[358514776,1745226650184,-500.0,0.00019452,2]
[358514777,1745226650194,-10493.52312257,0.00019726,2]
[358514778,1745226650203,-1955.22,0.00019726,2]
[358514779,1745226650213,-500.0,0.00019726,2]
[358514780,1745226650222,-500.0,0.00019726,2]
[358514781,1745226650232,-522.08,0.00019726,2]
[358514782,1745226650242,-500.0,0.00019726,2]
[358514783,1745226650252,-500.0,0.00019726,2]
[358514784,1745226650261,-500.0,0.00019726,2]
[358514785,1745226650271,-582.9,0.00019726,2]
[358514786,1745226650281,-500.0,0.00019726,2]
[358514787,1745226650290,-573.24,0.00019726,2]
[358514788,1745226650300,-500.0,0.00019726,2]
[358514789,1745226650309,-500.0,0.00019726,2]
[358514790,1745226650318,-500.0,0.00019726,2]
[358514791,1745226650328,-500.0,0.00019726,2]
[358514792,1745226650337,-500.0,0.00019726,2]
[358514793,1745226650346,-500.0,0.00019726,2]
[358514794,1745226650356,-500.0,0.00019726,2]
[358514795,1745226650366,-1256.73403532,0.00019726,2]
[358514796,1745226650375,-523.25699702,0.00019773,2]
[358514797,1745226650385,-500.0,0.00019773,2]
[358514798,1745226650394,-500.0,0.00019773,2]
[358514799,1745226650404,-500.0,0.00019773,2]
[358514800,1745226650414,-500.0,0.00019773,2]
[358514801,1745226650424,-500.0,0.00019773,2]
[358514802,1745226650433,-500.0,0.00019773,2]
[358514803,1745226650443,-500.0,0.00019773,2]
[358514804,1745226650453,-507.50345316,0.00019773,2]
[358514805,1745226650463,-500.0,0.00019773,2]
[358514806,1745226650472,-310.8064204,0.000198,2]
[358514807,1745226650482,-10034.92762462,0.000199,2]
[358514808,1745226650491,-151.0,0.00019944,2]
[358514809,1745226650501,-500.0,0.00019948,2]
[358514810,1745226650510,-500.0,0.00019991,2]
[358514811,1745226650520,-500.0,0.0002,2]
[358514812,1745226650529,-202.80638314,0.0002,2]
[358514813,1745226650539,-500.0,0.0002,2]
[358514814,1745226650548,-566.02,0.0002,2]
[358514815,1745226650558,-500.0,0.0002,2]
[358514816,1745226650567,-500.0,0.0002,2]
[358514817,1745226650576,-541.85,0.0002,2]
[358514818,1745226650585,-500.0,0.0002,2]
[358514819,1745226650597,-500.0,0.0002,2]
[358514820,1745226650607,-500.0,0.0002,2]
[358514821,1745226650616,-500.0,0.0002,2]
[358514822,1745226650626,-978.59,0.0002,2]
[358514823,1745226650635,-500.0,0.0002,2]
[358514824,1745226650644,-500.0,0.0002,2]
[358514825,1745226650654,-500.0,0.0002,2]
[358514826,1745226650665,-620.86,0.0002,2]
[358514827,1745226650674,-500.0,0.0002,2]
[358514828,1745226650684,-500.0,0.0002,2]
[358514829,1745226650693,-279.93388958,0.0002,2]
[358514830,1745226650702,-500.0,0.0002,2]
[358514831,1745226650712,-500.0,0.0002,2]
[358514832,1745226650721,-479.96309785,0.0002,2]
[358514833,1745226650730,-2047.96,0.0002,2]
[358514834,1745226650739,-500.0,0.0002,2]
[358514835,1745226650749,-500.0,0.0002,2]
[358514836,1745226650758,-584.5,0.0002,2]
[358514837,1745226650767,-500.0,0.0002,2]
[358514838,1745226650778,-500.0,0.0002,2]
[358514839,1745226650789,-500.0,0.0002,2]
[358514840,1745226650799,-500.0,0.0002,2]
[358514841,1745226650809,-707.06,0.0002,2]
[358514842,1745226650819,-210.08396214,0.0002,2]
[358514843,1745226650828,-500.0,0.0002,2]
[358514844,1745226650838,-500.0,0.0002,2]
[358514845,1745226650848,-500.0,0.0002,2]
[358514846,1745226650858,-2870.01,0.0002,2]
[358514847,1745226650868,-182.44959356,0.0002,2]
[358514848,1745226650878,-500.0,0.0002,2]
[358514849,1745226650887,-200.81356925,0.0002,2]
[358514850,1745226650897,-500.0,0.0002,2]
[358514851,1745226650907,-500.0,0.0002,2]
[358514852,1745226650916,-579.36,0.0002,2]
[358514853,1745226650925,-699.39,0.0002,2]
[358514854,1745226650935,-734.5,0.0002,2]
[358514855,1745226650944,-500.0,0.0002,2]
[358514856,1745226650955,-500.0,0.0002,2]
[358514857,1745226650964,-654.52,0.0002,2]
[358514858,1745226650974,-500.0,0.0002,2]
[358514859,1745226650983,-500.0,0.0002,2]
[358514860,1745226650992,-500.0,0.0002,2]
[358514861,1745226651002,-184.67002887,0.0002,2]
[358514862,1745226651011,-500.0,0.0002,2]
[358514863,1745226651020,-500.0,0.0002,2]
[358514864,1745226651029,-269.38669416,0.0002,2]
[358514865,1745226651039,-500.0,0.0002,2]
[358514866,1745226651048,-500.0,0.0002,2]
[358514867,1745226651058,-500.0,0.0002,2]
[358514868,1745226651067,-500.0,0.0002,2]
[358514869,1745226651076,-575.97,0.0002,2]
[358514870,1745226651085,-500.0,0.0002,2]
[358514871,1745226651094,-500.0,0.0002,2]
[358514872,1745226651104,-500.0,0.0002,2]
[358514873,1745226651113,-500.0,0.0002,2]
[358514874,1745226651123,-500.0,0.0002,2]
[358514875,1745226651132,-500.0,0.0002,2]
[358514876,1745226651141,-451.66118631,0.0002,2]
[358514877,1745226651151,-207.27,0.0002,2]
[358514878,1745226651162,-151.0,0.0002,2]
[358514879,1745226651171,-782.96,0.0002,2]
[358514880,1745226651181,-225.57,0.0002,2]
[358514881,1745226651191,-500.0,0.0002,2]
[358514882,1745226651200,-393.81,0.0002,2]
[358514883,1745226651209,-151.0,0.0002,2]
[358514884,1745226651219,-500.0,0.0002,2]
[358514885,1745226651229,-500.0,0.0002,2]
[358514886,1745226651238,-1640.22,0.0002,2]
[358514887,1745226651248,-648.92,0.0002,2]
[358514888,1745226651259,-500.0,0.0002,2]
[358514889,1745226651268,-151.0,0.0002,2]
[358514890,1745226651278,-500.0,0.0002,2]
[358514891,1745226651287,-500.0,0.0002,2]
[358514892,1745226651298,-500.0,0.0002,2]
[358514893,1745226651307,-550.95,0.0002,2]
[358514894,1745226651317,-500.0,0.0002,2]
[358514895,1745226651326,-997.703362,0.0002,2]
[358514896,1745226651337,-500.0,0.0002,2]
[358514897,1745226651346,-4103.7,0.0002,2]
[358514898,1745226651356,-997.703362,0.0002,2]
[358514899,1745226651366,-500.0,0.0002,2]
[358514900,1745226651375,-500.0,0.0002,2]
[358514901,1745226651385,-500.0,0.0002,2]
[358514902,1745226651394,-1125.12,0.0002,2]
[358514903,1745226651404,-151.0,0.0002,2]
[358514904,1745226651414,-594.24,0.0002,2]
[358514905,1745226651423,-1653.52,0.0002,2]
[358514906,1745226651433,-500.0,0.0002,2]
[358514907,1745226651442,-500.0,0.0002,2]
[358514908,1745226651452,-500.0,0.0002,2]
[358514909,1745226651461,-500.0,0.0002,2]
[358514910,1745226651470,-500.0,0.0002,2]
[358514911,1745226651479,-500.0,0.0002,2]
[358514912,1745226651489,-500.0,0.0002,2]
[358514913,1745226651499,-500.0,0.0002,2]
[358514914,1745226651508,-500.0,0.0002,2]
[358514915,1745226651517,-1343.9,0.0002,2]
[358514916,1745226651527,-503.96881181,0.0002,2]
[358514917,1745226651536,-500.0,0.0002,2]
[358514918,1745226651545,-500.0,0.0002,2]
[358514919,1745226651555,-151.0,0.0002,2]
[358514920,1745226651565,-500.0,0.0002,2]
[358514921,1745226651574,-500.0,0.0002,2]
[358514922,1745226651584,-2510.49,0.0002,2]
[358514923,1745226651595,-151.0,0.0002,2]
[358514924,1745226651604,-500.0,0.0002,2]
[358514925,1745226651613,-500.0,0.0002,2]
[358514926,1745226651623,-500.0,0.0002,2]
[358514927,1745226651633,-514.36019295,0.0002,2]
[358514928,1745226651642,-500.0,0.0002,2]
[358514929,1745226651652,-453.97758817,0.0002,2]
[358514930,1745226651661,-500.0,0.0002,2]
[358514931,1745226651671,-500.0,0.0002,2]
[358514932,1745226651681,-500.0,0.0002,2]
[358514933,1745226651691,-500.0,0.0002,2]
[358514934,1745226651700,-663.02,0.0002,2]
[358514935,1745226651710,-500.0,0.0002,2]
[358514936,1745226651720,-921.33,0.0002,2]
[358514937,1745226651730,-583.28,0.0002,2]
[358514938,1745226651739,-511.6,0.0002,2]
[358514939,1745226651749,-2897.84,0.0002,2]
[358514940,1745226651758,-500.0,0.0002,2]
[358514941,1745226651767,-500.0,0.0002,2]
[358514942,1745226651777,-500.0,0.0002,2]
[358514943,1745226651786,-500.0,0.0002,2]
[358514944,1745226651795,-350.801921,0.0002,2]
[358514945,1745226651805,-500.0,0.0002,2]
[358514946,1745226651814,-500.0,0.0002,2]
[358514947,1745226651824,-110.35555044,0.0002,2]
[358514948,1745226651838,-1597.82444956,0.0002,2]
[358514949,1745226651847,-350.801921,0.0002,2]
[358514950,1745226651857,-500.0,0.0002,2]
[358514951,1745226651867,-8523.29,0.0002,2]
[358514952,1745226651876,-726.63,0.0002,2]
[358514953,1745226651886,-503.86516361,0.0002,2]
[358514954,1745226651895,-500.0,0.0002,2]
[358514955,1745226651904,-500.0,0.0002,2]
[358514956,1745226651914,-500.0,0.0002,2]
[358514957,1745226651923,-500.0,0.0002,2]
[358514958,1745226651933,-500.0,0.0002,2]
[358514959,1745226651943,-159.52346158,0.0002,2]
[358514960,1745226651952,-500.0,0.0002,2]
[358514961,1745226651962,-500.0,0.0002,2]
[358514962,1745226651971,-503.5263165,0.0002,2]
[358514963,1745226651981,-575.55197582,0.0002,2]
[358514964,1745226651991,-505.40596534,0.0002,2]
[358514965,1745226652001,-500.0,0.0002,2]
[358514966,1745226652010,-500.0,0.0002,2]
[358514967,1745226652020,-2000.0,0.0002,4]
[358514968,1745226652029,-500.0,0.0002,2]
[358514969,1745226652039,-500.0,0.0002,2]
[358514970,1745226652049,-12509.51,0.0002,2]
[358514971,1745226652058,-294.00432178,0.0002,2]
[358514972,1745226652071,-1661.21567822,0.0002,2]
[358514973,1745226652081,-500.0,0.0002,2]
[358514974,1745226652091,-143.27016,0.0002,2]
[358514975,1745226652104,-365.92246139,0.0002,2]
[358514976,1745226652113,-522.08,0.0002,2]
[358514977,1745226652123,-500.0,0.0002,2]
[358514978,1745226652132,-234.97622396,0.0002,2]
[358514979,1745226652142,-500.0,0.0002,2]
[358514980,1745226652152,-582.9,0.0002,2]
[358514981,1745226652162,-500.0,0.0002,2]
[358514982,1745226652172,-573.24,0.0002,2]
[358514983,1745226652182,-500.0,0.0002,2]
[358514984,1745226652191,-500.0,0.0002,2]
[358514985,1745226652201,-500.0,0.0002,2]
[358514986,1745226652210,-500.0,0.0002,2]
[358514987,1745226652220,-195.31498106,0.0002,2]
[358514988,1745226652229,-500.0,0.0002,2]
[358514989,1745226652239,-155.6325752,0.0002,2]
[358514990,1745226652249,-247.40141043,0.00020133,2]
[358514991,1745226652258,-151.0,0.000202,3]
[358514992,1745226652268,-151.0,0.00020262,2]
[358514993,1745226652278,-500.0,0.00020263,2]
[358514994,1745226652287,-5402.27497176,0.00020273,2]
[358514995,1745226652302,-373.887058,0.00019452,2]
[358514996,1745226652314,-129.9213357,0.00019452,2]
[358514997,1745226652323,-5166.63362636,0.00020273,2]
[358514998,1745226652795,-500.0,0.00019178,2]
[358514999,1745226652805,-156.9768466,0.00019452,2]
[358515000,1745226652825,-343.0231534,0.00019452,2]
[358515001,1745226652834,-500.0,0.00019726,2]
[358515002,1745226652844,-500.0,0.0002,2]
[358515003,1745226652854,-1931.09140188,0.00020273,2]
[358515004,1745226652863,-500.0,0.00020273,2]
[358515005,1745226652873,-417.76814724,0.00020273,2]
[358515006,1745226652882,-136.82635748,0.00020273,2]
[358515036,1745227736942,-188.30536858,0.00016,2]
[358515059,1745227838312,-19.65633369,0.00016,2]
[358515061,1745227838322,-210.0194444,0.00018053,2]
[358515063,1745227838331,-187.75122142,0.00018153,2]
[358515068,1745227838366,-9531.15780078,0.00018153,2]
[358515070,1745227838376,-300.0,0.00018859,2]
[358515072,1745227838386,-300.0,0.0001886,2]
[358515074,1745227838396,-150.51622627,0.0001887,2]
[358515076,1745227838406,-195.98,0.00018955,2]
[358515078,1745227838415,-34674.01534836,0.00018965,2]
[358515081,1745227838426,-550.78592837,0.00018966,2]
[358515083,1745227838436,-500.0,0.00018966,2]
[358515085,1745227838445,-500.0,0.00018966,2]
[358515087,1745227838455,-500.0,0.00018966,2]
[358515089,1745227838464,-500.0,0.00018966,2]
[358515091,1745227838474,-500.0,0.00018966,2]
[358515093,1745227838483,-500.0,0.00018966,2]
[358515096,1745227838493,-500.0,0.00018966,2]
[358515098,1745227838502,-500.0,0.00018966,2]
[358515101,1745227838512,-500.0,0.00018966,2]
[358515104,1745227838521,-500.0,0.00018966,2]
[358515106,1745227838530,-500.0,0.00018966,2]
[358515108,1745227838540,-500.0,0.00018966,2]
[358515110,1745227838550,-500.0,0.00018966,2]
[358515112,1745227838559,-500.0,0.00018966,2]
[358515114,1745227838569,-391.63794254,0.00018966,2]
[358515116,1745227838578,-500.0,0.00018966,2]
[358515118,1745227838587,-500.0,0.00018966,2]
[358515120,1745227838597,-500.0,0.00018966,2]
[358515122,1745227838606,-207.4,0.00018967,2]
[358515124,1745227838616,-151.0,0.00018967,2]
[358515126,1745227838626,-216.54108438,0.00018967,2]
[358515128,1745227838635,-28011.61063593,0.00018967,2]
[358515130,1745227838647,-10223.1251463,0.0001897,2]
[358515133,1745227838656,-371.600267,0.00018973,2]
[358515135,1745227838665,-500.0,0.00018973,2]
[358515137,1745227838675,-500.0,0.00018973,2]
[358515139,1745227838685,-260.26039136,0.00018973,2]
[358515140,1745227838694,-500.0,0.00018973,2]
[358515142,1745227838704,-502.58018827,0.00018973,2]
[358515144,1745227838714,-155.3690706,0.00018973,2]
[358515146,1745227838723,-263.62518556,0.00018973,2]
[358515149,1745227838733,-208.89996497,0.00018973,2]
[358515151,1745227838742,-259.5167326,0.00018973,2]
[358515153,1745227838752,-500.0,0.00018973,2]
[358515155,1745227838762,-269.1393207,0.00018973,2]
[358515157,1745227838771,-500.0,0.00018973,2]
[358515159,1745227838781,-500.0,0.00018973,2]
[358515161,1745227838791,-150.8903401,0.00018973,2]
[358515163,1745227838800,-500.0,0.00018973,2]
[358515165,1745227838809,-500.0,0.00018973,2]
[358515167,1745227838819,-505.68160521,0.00018973,2]
[358515169,1745227838828,-500.0,0.00018973,2]
[358515171,1745227838837,-252.33419759,0.00018973,2]
[358515173,1745227838846,-500.0,0.00018973,2]
[358515175,1745227838855,-500.0,0.00018973,2]
[358515177,1745227838864,-500.0,0.00018973,2]
[358515179,1745227838873,-160.38097583,0.00018973,2]
[358515181,1745227838883,-500.0,0.00018973,2]
[358515183,1745227838892,-500.0,0.00018973,2]
[358515185,1745227838902,-500.0,0.00018973,2]
[358515187,1745227838911,-500.0,0.00018973,2]
[358515189,1745227838920,-500.0,0.00018973,2]
[358515191,1745227838930,-500.0,0.00018973,2]
[358515193,1745227838939,-500.0,0.00018973,2]
[358515195,1745227838948,-500.0,0.00018973,2]
[358515197,1745227838962,-500.0,0.00018973,2]
[358515199,1745227838971,-500.0,0.00018973,2]
[358515202,1745227838982,-500.0,0.00018973,2]
[358515204,1745227838992,-500.0,0.00018977,2]
[358515206,1745227839002,-500.0,0.00018977,2]
[358515208,1745227839011,-265.85256696,0.00018977,2]
[358515210,1745227839021,-160.0,0.00018977,2]
[358515212,1745227839031,-420.65680271,0.00018977,2]
[358515214,1745227839040,-160.0,0.00018977,2]
[358515216,1745227839049,-729.16666667,0.00018977,2]
[358515218,1745227839059,-160.0,0.00018977,2]
[358515220,1745227839068,-370000.0,0.00018978,2]
[358515223,1745227839083,-160.0,0.00019172,2]
[358515225,1745227839097,-500.0,0.00019173,2]
[358515228,1745227839110,-500.0,0.00019173,2]
[358515230,1745227839124,-207.75320119,0.00019173,2]
[358515233,1745227839137,-500.0,0.00019173,2]
[358515235,1745227839149,-500.0,0.00019173,2]
[358515237,1745227839160,-500.0,0.00019173,2]
[358515239,1745227839170,-500.0,0.00019173,2]
[358515242,1745227839183,-500.0,0.00019173,2]
[358515244,1745227839195,-500.0,0.00019173,2]
[358515246,1745227839207,-500.33382385,0.00019173,2]
[358515249,1745227839219,-500.0,0.00019173,2]
[358515251,1745227839231,-500.0,0.00019173,2]
[358515253,1745227839243,-260.61908595,0.00019173,2]
[358515256,1745227839254,-250.90288054,0.00019173,2]
[358515258,1745227839267,-261.08678753,0.00019173,2]
[358515260,1745227839279,-536.46656114,0.00019173,2]
[358515263,1745227839290,-503.04152783,0.00019173,2]
[358515265,1745227839302,-506.35633722,0.00019173,2]
[358515268,1745227839314,-525.59584919,0.00019173,2]
[358515270,1745227839325,-500.0,0.00019173,2]
[358515272,1745227839337,-500.44287265,0.00019173,2]
[358515274,1745227839348,-500.0,0.00019173,2]
[358515277,1745227839359,-500.0,0.00019173,2]
[358515279,1745227839372,-500.63272198,0.00019173,2]
[358515281,1745227839383,-500.0,0.00019173,2]
[358515283,1745227839395,-500.0,0.00019173,2]
[358515286,1745227839406,-505.33097826,0.00019173,2]
[358515288,1745227839418,-500.0,0.00019173,2]
[358515291,1745227839432,-500.0,0.00019173,2]
[358515293,1745227839443,-269.68881802,0.00019173,2]
[358515295,1745227839455,-500.0,0.00019173,2]
[358515297,1745227839465,-500.0,0.00019173,2]
[358515299,1745227839476,-500.0,0.00019173,2]
[358515301,1745227839486,-500.0,0.00019173,2]
[358515303,1745227839496,-500.0,0.00019173,2]
[358515306,1745227839508,-529.20632403,0.00019173,2]
[358515308,1745227839519,-500.0,0.00019173,2]
[358515310,1745227839530,-502.04197398,0.00019173,2]
[358515312,1745227839542,-500.0,0.00019173,2]
[358515315,1745227839554,-500.0,0.00019173,2]
[358515317,1745227839566,-500.0,0.00019173,2]
[358515319,1745227839578,-500.0,0.00019173,2]
[358515321,1745227839589,-511.48193932,0.00019173,2]
[358515324,1745227839601,-519.59341644,0.00019173,2]
[358515325,1745227839614,-500.0,0.00019173,2]
[358515326,1745227839626,-500.0,0.00019173,2]
[358515327,1745227839638,-500.0,0.00019173,2]
[358515328,1745227839650,-151.0,0.00019173,2]
[358515329,1745227839664,-500.0,0.00019178,2]
[358515330,1745227839676,-500.0,0.00019178,2]
[358515331,1745227839686,-500.0,0.00019178,2]
[358515332,1745227839698,-501.75531317,0.00019178,2]
[358515333,1745227839709,-500.0,0.00019178,2]
[358515334,1745227839719,-500.47629091,0.00019178,2]
[358515336,1745227839731,-500.0,0.00019178,2]
[358515338,1745227839743,-500.0,0.00019178,2]
[358515340,1745227839753,-503.5508311,0.00019178,2]
[358515342,1745227839767,-500.0,0.00019178,2]
[358515344,1745227839778,-500.0,0.00019178,2]
[358515347,1745227839789,-614.94053251,0.00019178,2]
[358515349,1745227839799,-500.0,0.00019178,2]
[358515351,1745227839809,-500.0,0.00019178,2]
[358515353,1745227839820,-500.0,0.00019178,2]
[358515355,1745227839831,-500.0,0.00019178,2]
[358515357,1745227839843,-500.0,0.00019178,2]
[358515360,1745227839855,-500.0,0.00019178,2]
[358515362,1745227839866,-500.0,0.00019178,2]
[358515364,1745227839876,-500.0,0.00019178,2]
[358515366,1745227839887,-500.0,0.00019178,2]
[358515368,1745227839897,-500.90837731,0.00019178,2]
[358515370,1745227839907,-500.0,0.00019178,2]
[358515373,1745227839918,-500.0,0.00019178,2]
[358515375,1745227839930,-500.0,0.00019178,2]
[358515377,1745227839940,-500.0,0.00019178,2]
[358515379,1745227839953,-500.0,0.00019178,2]
[358515381,1745227839965,-500.0,0.00019178,2]
[358515383,1745227839975,-500.0,0.00019178,2]
[358515385,1745227839985,-500.0,0.00019178,2]
[358515387,1745227839996,-503.10520462,0.00019178,2]
[358515389,1745227840006,-503.80387552,0.00019178,2]
[358515392,1745227840024,-500.0,0.00019178,2]
[358515395,1745227840035,-500.0,0.00019178,2]
[358515397,1745227840046,-500.0,0.00019178,2]
[358515400,1745227840056,-500.0,0.00019178,2]
[358515402,1745227840066,-500.0,0.00019178,2]
[358515404,1745227840077,-500.0,0.00019178,2]
[358515406,1745227840087,-500.0,0.00019178,2]
[358515409,1745227840098,-500.0,0.00019178,2]
[358515411,1745227840109,-500.0,0.00019178,2]
[358515413,1745227840120,-500.0,0.00019178,2]
[358515415,1745227840131,-500.0,0.00019178,2]
[358515417,1745227840141,-500.0,0.00019178,2]
[358515419,1745227840152,-513.45394284,0.00019178,2]
[358515421,1745227840163,-500.0,0.00019178,2]
[358515424,1745227840175,-500.0,0.00019178,2]
[358515426,1745227840190,-500.0,0.00019178,2]
[358515428,1745227840201,-500.0,0.00019178,2]
[358515431,1745227840211,-500.0,0.00019178,2]
[358515433,1745227840222,-500.0,0.00019178,2]
[358515435,1745227840233,-500.0,0.00019178,2]
[358515437,1745227840244,-500.0,0.00019178,2]
[358515439,1745227840254,-500.0,0.00019178,2]
[358515441,1745227840265,-500.0,0.00019178,2]
[358515443,1745227840276,-298.32077228,0.00019178,2]
[358515446,1745227840287,-539.63609907,0.00019178,2]
[358515448,1745227840298,-500.0,0.00019178,2]
[358515450,1745227840308,-500.0,0.00019178,2]
[358515452,1745227840319,-500.0,0.00019178,2]
[358515454,1745227840330,-500.0,0.00019178,2]
[358515456,1745227840341,-500.0,0.00019178,2]
[358515458,1745227840351,-500.0,0.00019178,2]
[358515461,1745227840362,-500.0,0.00019178,2]
[358515463,1745227840373,-500.0,0.00019178,2]
[358515465,1745227840383,-559.14,0.00019178,2]
[358515467,1745227840394,-500.0,0.00019178,2]
[358515469,1745227840404,-598.22,0.00019178,2]
[358515471,1745227840415,-561.18,0.00019178,2]
[358515474,1745227840428,-500.0,0.00019178,2]
[358515476,1745227840439,-500.0,0.00019178,2]
[358515478,1745227840450,-309.27703978,0.00019178,2]
[358515480,1745227840460,-500.0,0.00019178,2]
[358515482,1745227840471,-500.0,0.00019178,2]
[358515484,1745227840481,-500.0,0.00019178,2]
[358515487,1745227840492,-500.0,0.00019178,2]
[358515489,1745227840503,-500.0,0.00019178,2]
[358515491,1745227840514,-500.0,0.00019178,2]
[358515493,1745227840524,-214.55500712,0.00019178,2]
[358515495,1745227840535,-500.0,0.00019178,2]
[358515497,1745227840546,-500.0,0.00019178,2]
[358515499,1745227840556,-500.0,0.00019178,2]
[358515502,1745227840566,-500.0,0.00019178,2]
[358515504,1745227840577,-500.0,0.00019178,2]
[358515506,1745227840587,-500.0,0.00019178,2]
[358515508,1745227840598,-500.0,0.00019178,2]
[358515510,1745227840608,-500.0,0.00019178,2]
[358515512,1745227840618,-500.0,0.00019178,2]
[358515514,1745227840629,-500.0,0.00019178,2]
[358515516,1745227840639,-469.12770304,0.00019178,2]
[358515518,1745227840650,-500.0,0.00019178,2]
[358515521,1745227840661,-500.0,0.00019178,2]
[358515523,1745227840671,-377.24409038,0.00019178,2]
[358515525,1745227840684,-500.0,0.00019178,2]
[358515527,1745227840694,-500.0,0.00019178,2]
[358515530,1745227840706,-500.0,0.00019178,2]
[358515532,1745227840718,-500.0,0.00019178,2]
[358515534,1745227840729,-500.0,0.00019178,2]
[358515536,1745227840739,-500.0,0.00019178,2]
[358515538,1745227840750,-500.0,0.00019178,2]
[358515540,1745227840761,-500.0,0.00019178,2]
[358515542,1745227840772,-500.0,0.00019178,2]
[358515545,1745227840783,-500.0,0.00019178,2]
[358515547,1745227840794,-500.0,0.00019178,2]
[358515549,1745227840804,-500.0,0.00019178,2]
[358515551,1745227840815,-500.0,0.00019178,2]
[358515553,1745227840826,-438.73471292,0.00019178,2]
[358515555,1745227840837,-500.0,0.00019178,2]
[358515558,1745227840847,-500.0,0.00019178,2]
[358515560,1745227840858,-558.48,0.00019178,2]
[358515562,1745227840869,-500.0,0.00019178,2]
[358515564,1745227840879,-500.0,0.00019178,2]
[358515566,1745227840891,-537.03473804,0.00019178,2]
[358515568,1745227840901,-500.0,0.00019178,2]
[358515570,1745227840911,-500.0,0.00019178,2]
[358515573,1745227840921,-500.0,0.00019178,2]
[358515575,1745227840933,-642.88023494,0.00019178,2]
[358515577,1745227840943,-500.0,0.00019178,2]
[358515579,1745227840955,-500.0,0.00019178,2]
[358515581,1745227840966,-502.22799811,0.00019178,2]
[358515583,1745227840977,-500.0,0.00019178,2]
[358515585,1745227840987,-500.0,0.00019178,2]
[358515587,1745227840999,-500.0,0.00019178,2]
[358515589,1745227841010,-500.0,0.00019178,2]
[358515591,1745227841021,-500.0,0.00019178,2]
[358515594,1745227841031,-500.0,0.00019178,2]
[358515596,1745227841045,-500.0,0.00019178,2]
[358515598,1745227841055,-500.0,0.00019178,2]
[358515600,1745227841066,-357.04177796,0.00019178,2]
[358515623,1745227841271,-500.0,0.00019178,2]
[358515626,1745227841292,-500.0,0.00019178,2]
[358515629,1745227841306,-500.0,0.00019178,2]